[Event "*** Titled Tuesday Blitz"]
[Site "Chess.com"]
[Date "2019.11.05"]
[Round "10"]
[White "semchik73"]
[Black "Qvalda"]
[Result "1-0"]
[WhiteElo "2422"]
[BlackElo "2524"]
[TimeControl "180+2"]
[EndTime "15:19:14 PST"]
[Termination "semchik73 won by resignation"]

1. Nf3 {[%clk 0:03:01.1]} 1... d5 {[%clk 0:02:58.7]} 2. c4 {[%clk 0:03:02.4]}
2... e6 {[%clk 0:02:59.7]} 3. d4 {[%clk 0:03:02.9]} 3... a6 {[%clk 0:03:00.5]}
4. Nc3 {[%clk 0:03:04.1]} 4... dxc4 {[%clk 0:03:00.6]} 5. a4 {[%clk 0:03:04.9]}
5... c5 {[%clk 0:03:01.8]} 6. e3 {[%clk 0:03:05.2]} 6... Nf6 {[%clk 0:03:01.5]}
7. Bxc4 {[%clk 0:03:04.9]} 7... Nc6 {[%clk 0:03:01.4]} 8. O-O {[%clk 0:03:03.6]}
8... Qc7 {[%clk 0:03:02.6]} 9. Qe2 {[%clk 0:03:02]} 9... Bd6 {[%clk 0:03:03.2]}
10. h3 {[%clk 0:02:58.4]} 10... b6 {[%clk 0:03:04.4]} 11. Rd1 {[%clk 0:02:52.2]}
11... O-O {[%clk 0:03:05.1]} 12. e4 {[%clk 0:02:49.2]} 12... cxd4 {[%clk
0:03:04.7]} 13. Nxd4 {[%clk 0:02:49.8]} 13... Nxd4 {[%clk 0:03:01.4]} 14. Rxd4
{[%clk 0:02:50.4]} 14... Be5 {[%clk 0:02:48.4]} 15. Rd1 {[%clk 0:02:47.6]} 15...
Bb7 {[%clk 0:02:49.1]} 16. Bd3 {[%clk 0:02:30.5]} 16... Rfd8 {[%clk 0:02:13.8]}
17. Be3 {[%clk 0:02:01.8]} 17... Bf4 {[%clk 0:01:43.3]} 18. Bxf4 {[%clk
0:01:54.4]} 18... Qxf4 {[%clk 0:01:45.2]} 19. e5 {[%clk 0:01:40.2]} 19... Qg5
{[%clk 0:01:29.6]} 20. f4 {[%clk 0:01:34.6]} 20... Qxf4 {[%clk 0:01:04.6]} 21.
exf6 {[%clk 0:01:34.4]} 21... Qxf6 {[%clk 0:01:04.3]} 22. Be4 {[%clk 0:01:30.8]}
22... Bxe4 {[%clk 0:00:56.2]} 23. Qxe4 {[%clk 0:01:30.6]} 23... Rac8 {[%clk
0:00:47.5]} 24. Rxd8+ {[%clk 0:01:28.8]} 24... Rxd8 {[%clk 0:00:47.3]} 25. Rd1
{[%clk 0:01:30.2]} 25... Rxd1+ {[%clk 0:00:41]} 26. Nxd1 {[%clk 0:01:31.6]}
26... g6 {[%clk 0:00:33.2]} 27. Nc3 {[%clk 0:01:26.3]} 27... Kg7 {[%clk
0:00:31.2]} 28. Qd3 {[%clk 0:01:25.7]} 28... a5 {[%clk 0:00:28.1]} 29. Ne4
{[%clk 0:01:25.6]} 29... Qxb2 {[%clk 0:00:25.6]} 30. Qc3+ {[%clk 0:01:26.6]}
30... Qxc3 {[%clk 0:00:26.3]} 31. Nxc3 {[%clk 0:01:28]} 31... Kf6 {[%clk
0:00:25.3]} 32. Kf2 {[%clk 0:01:28.6]} 32... e5 {[%clk 0:00:21.3]} 33. Nd5+
{[%clk 0:01:28.5]} 33... Ke6 {[%clk 0:00:21.9]} 34. Nxb6 {[%clk 0:01:29.9]}
34... f5 {[%clk 0:00:19]} 35. Nc4 {[%clk 0:01:31.2]} 35... Kd5 {[%clk
0:00:15.7]} 36. Nxa5 {[%clk 0:01:32.6]} 36... Kc5 {[%clk 0:00:16.2]} 37. Nb3+
{[%clk 0:01:33.3]} 37... Kb4 {[%clk 0:00:16.3]} 38. a5 {[%clk 0:01:34.2]} 38...
Kb5 {[%clk 0:00:17.3]} 39. Ke3 {[%clk 0:01:33.6]} 39... e4 {[%clk 0:00:18.3]}
40. Kd4 {[%clk 0:01:33.9]} 40... g5 {[%clk 0:00:17.6]} 41. Ke3 {[%clk 0:01:33]}
41... h6 {[%clk 0:00:18.1]} 42. Nd4+ {[%clk 0:01:33.3]} 42... Kxa5 {[%clk
0:00:18.5]} 43. Nxf5 {[%clk 0:01:34.8]} 43... Kb5 {[%clk 0:00:19.9]} 44. Kxe4
{[%clk 0:01:36]} 1-0

[Event "*** Titled Tuesday Blitz"]
[Site "Chess.com"]
[Date "2019.11.05"]
[Round "10"]
[White "misha_chessone"]
[Black "chanchakman"]
[Result "1-0"]
[WhiteElo "2344"]
[BlackElo "2147"]
[TimeControl "180+2"]
[EndTime "15:19:19 PST"]
[Termination "misha_chessone won on time"]

1. d4 {[%clk 0:03:01.9]} 1... Nf6 {[%clk 0:03:01.5]} 2. c4 {[%clk 0:03:02.4]}
2... g6 {[%clk 0:02:59.5]} 3. Nc3 {[%clk 0:03:03.2]} 3... Bg7 {[%clk 0:03:01.4]}
4. e4 {[%clk 0:03:03.8]} 4... d6 {[%clk 0:03:03.3]} 5. Be2 {[%clk 0:03:05.3]}
5... O-O {[%clk 0:03:04.5]} 6. Bg5 {[%clk 0:03:06]} 6... h6 {[%clk 0:03:05.4]}
7. Be3 {[%clk 0:03:06.6]} 7... c5 {[%clk 0:03:07.3]} 8. e5 {[%clk 0:03:00]} 8...
Nfd7 {[%clk 0:03:03.8]} 9. exd6 {[%clk 0:03:00.1]} 9... exd6 {[%clk 0:03:04.3]}
10. Nf3 {[%clk 0:03:01.7]} 10... Nc6 {[%clk 0:03:01.1]} 11. O-O {[%clk
0:03:02.3]} 11... cxd4 {[%clk 0:02:34.9]} 12. Nxd4 {[%clk 0:03:01.8]} 12... Nce5
{[%clk 0:02:35.8]} 13. Ndb5 {[%clk 0:02:55.7]} 13... Nb6 {[%clk 0:02:21.5]} 14.
Nxd6 {[%clk 0:02:38.8]} 14... Be6 {[%clk 0:02:19.2]} 15. c5 {[%clk 0:02:24.9]}
15... Nc8 {[%clk 0:02:07.4]} 16. Nxb7 {[%clk 0:02:21.5]} 16... Qh4 {[%clk
0:01:52.1]} 17. Nd6 {[%clk 0:01:45.6]} 17... Rb8 {[%clk 0:01:47.9]} 18. Qa4
{[%clk 0:01:26.6]} 18... Rb4 {[%clk 0:01:44.5]} 19. Qc2 {[%clk 0:01:18.6]} 19...
Nxd6 {[%clk 0:01:12.8]} 20. cxd6 {[%clk 0:01:18.3]} 20... Bf5 {[%clk 0:01:14]}
21. Qd2 {[%clk 0:01:13]} 21... Rfb8 {[%clk 0:01:02.3]} 22. b3 {[%clk 0:01:06.5]}
22... Rd8 {[%clk 0:00:54.4]} 23. Rad1 {[%clk 0:01:05.3]} 23... Ng4 {[%clk
0:00:37.8]} 24. Bxg4 {[%clk 0:00:57.5]} 24... Bxg4 {[%clk 0:00:35.3]} 25. f3
{[%clk 0:00:58]} 25... Be5 {[%clk 0:00:23.5]} 26. g3 {[%clk 0:00:39.5]} 1-0

[Event "*** Titled Tuesday Blitz"]
[Site "Chess.com"]
[Date "2019.11.05"]
[Round "10"]
[White "Alexander_Moskalenko"]
[Black "gorgeous1083"]
[Result "1/2-1/2"]
[WhiteElo "2862"]
[BlackElo "2009"]
[TimeControl "180+2"]
[EndTime "15:19:20 PST"]
[Termination "Game drawn by repetition"]

1. e4 {[%clk 0:03:01.9]} 1... e5 {[%clk 0:03:00.4]} 2. Nf3 {[%clk 0:03:02.9]}
2... Nc6 {[%clk 0:03:01.7]} 3. Bb5 {[%clk 0:03:04.3]} 3... a6 {[%clk 0:02:56]}
4. Ba4 {[%clk 0:03:01.1]} 4... Nf6 {[%clk 0:02:56.8]} 5. O-O {[%clk 0:03:02]}
5... Bc5 {[%clk 0:02:53.4]} 6. c3 {[%clk 0:03:02.4]} 6... b5 {[%clk 0:02:52.6]}
7. Bc2 {[%clk 0:03:03.2]} 7... d6 {[%clk 0:02:53.9]} 8. d4 {[%clk 0:03:04.2]}
8... Bb6 {[%clk 0:02:52.7]} 9. a4 {[%clk 0:02:59.5]} 9... Bb7 {[%clk 0:02:48]}
10. h3 {[%clk 0:02:59.6]} 10... O-O {[%clk 0:02:48]} 11. Be3 {[%clk 0:03:00.9]}
11... Re8 {[%clk 0:02:36.4]} 12. Nbd2 {[%clk 0:03:01.3]} 12... h6 {[%clk
0:02:28]} 13. Re1 {[%clk 0:03:00.5]} 13... Qe7 {[%clk 0:02:13]} 14. Qe2 {[%clk
0:02:56.3]} 14... b4 {[%clk 0:02:08.6]} 15. d5 {[%clk 0:02:53]} 15... bxc3
{[%clk 0:02:04.1]} 16. dxc6 {[%clk 0:02:53.1]} 16... cxd2 {[%clk 0:02:03.1]} 17.
Bxd2 {[%clk 0:02:50]} 17... Bxc6 {[%clk 0:01:59.4]} 18. a5 {[%clk 0:02:51.9]}
18... Bc5 {[%clk 0:01:54.2]} 19. b4 {[%clk 0:02:43.6]} 19... Bd4 {[%clk
0:01:47.5]} 20. Nxd4 {[%clk 0:02:44]} 20... exd4 {[%clk 0:01:48.6]} 21. Qc4
{[%clk 0:02:45.9]} 21... Bxe4 {[%clk 0:01:23]} 22. Qxd4 {[%clk 0:02:32.9]} 22...
c5 {[%clk 0:01:14.6]} 23. bxc5 {[%clk 0:02:02.4]} 23... dxc5 {[%clk 0:01:16.5]}
24. Qc3 {[%clk 0:02:03.4]} 24... Qb7 {[%clk 0:01:11]} 25. Rab1 {[%clk
0:02:02.9]} 25... Qc6 {[%clk 0:01:06.5]} 26. Rb6 {[%clk 0:02:03.2]} 26... Qd7
{[%clk 0:00:43.7]} 27. Rxf6 {[%clk 0:01:55.8]} 27... Bxc2 {[%clk 0:00:34.6]} 28.
Bxh6 {[%clk 0:01:53.1]} 28... Rxe1+ {[%clk 0:00:32.1]} 29. Kh2 {[%clk
0:01:51.2]} 29... gxh6 {[%clk 0:00:11.9]} 30. Rxh6 {[%clk 0:01:45.3]} 30... Qc7+
{[%clk 0:00:09.1]} 31. g3 {[%clk 0:01:44.1]} 31... Qe5 {[%clk 0:00:07.6]} 32.
Qxc2 {[%clk 0:01:45.4]} 32... Re8 {[%clk 0:00:06]} 33. Qh7+ {[%clk 0:01:45.9]}
33... Kf8 {[%clk 0:00:06.6]} 34. Rh4 {[%clk 0:01:42.5]} 34... Qd5 {[%clk
0:00:05.9]} 35. Qh6+ {[%clk 0:01:34.8]} 35... Ke7 {[%clk 0:00:05.9]} 36. g4
{[%clk 0:01:28.8]} 36... Rh1+ {[%clk 0:00:05.1]} 37. Kg3 {[%clk 0:01:30.1]}
37... Rg1+ {[%clk 0:00:05.7]} 38. Kf4 {[%clk 0:01:30.8]} 38... Qd4+ {[%clk
0:00:06.7]} 39. Kf3 {[%clk 0:01:30.5]} 39... Qc3+ {[%clk 0:00:05.4]} 40. Ke4
{[%clk 0:01:30.3]} 40... Qd4+ {[%clk 0:00:05.3]} 41. Kf3 {[%clk 0:01:31.2]}
41... Qc3+ {[%clk 0:00:06.1]} 42. Ke4 {[%clk 0:01:31.7]} 42... Qd4+ {[%clk
0:00:06.9]} 43. Kf3 {[%clk 0:01:33.2]} 1/2-1/2

[Event "*** Titled Tuesday Blitz"]
[Site "Chess.com"]
[Date "2019.11.05"]
[Round "10"]
[White "severomorskij"]
[Black "platy3"]
[Result "0-1"]
[WhiteElo "2888"]
[BlackElo "2919"]
[TimeControl "180+2"]
[EndTime "15:19:21 PST"]
[Termination "platy3 won on time"]

1. d4 {[%clk 0:03:01.9]} 1... Nf6 {[%clk 0:03:00.7]} 2. c4 {[%clk 0:03:02.8]}
2... e6 {[%clk 0:03:01.8]} 3. Nc3 {[%clk 0:03:03.6]} 3... Bb4 {[%clk 0:03:02.6]}
4. Nf3 {[%clk 0:03:05]} 4... b6 {[%clk 0:03:02.2]} 5. e3 {[%clk 0:03:03.5]} 5...
Bb7 {[%clk 0:03:03]} 6. Bd3 {[%clk 0:03:03.3]} 6... O-O {[%clk 0:03:00.8]} 7.
O-O {[%clk 0:03:03.9]} 7... d5 {[%clk 0:02:55]} 8. cxd5 {[%clk 0:03:04.1]} 8...
exd5 {[%clk 0:02:55.3]} 9. Ne5 {[%clk 0:03:05.1]} 9... c5 {[%clk 0:02:51.6]} 10.
f4 {[%clk 0:03:04.8]} 10... cxd4 {[%clk 0:02:45.2]} 11. exd4 {[%clk 0:03:04]}
11... Nc6 {[%clk 0:02:46.6]} 12. Be3 {[%clk 0:02:56.7]} 12... Bxc3 {[%clk
0:02:42.7]} 13. bxc3 {[%clk 0:02:56.9]} 13... Ne4 {[%clk 0:02:43.8]} 14. Qf3
{[%clk 0:02:24.9]} 14... Ne7 {[%clk 0:02:38.5]} 15. f5 {[%clk 0:02:06]} 15... f6
{[%clk 0:02:37.6]} 16. Ng4 {[%clk 0:02:05.5]} 16... Rc8 {[%clk 0:02:39.1]} 17.
c4 {[%clk 0:01:28.8]} 17... Rxc4 {[%clk 0:02:33.9]} 18. Bxc4 {[%clk 0:01:24.6]}
18... dxc4 {[%clk 0:02:35.8]} 19. Qh3 {[%clk 0:01:18.5]} 19... Qd5 {[%clk
0:02:26.1]} 20. Rae1 {[%clk 0:01:12.5]} 20... b5 {[%clk 0:02:19.7]} 21. Kh1
{[%clk 0:00:56.9]} 21... c3 {[%clk 0:02:15.9]} 22. a3 {[%clk 0:00:51.3]} 22...
a5 {[%clk 0:02:16.2]} 23. Rb1 {[%clk 0:00:37.8]} 23... Qc4 {[%clk 0:02:12.7]}
24. Bf4 {[%clk 0:00:27.1]} 24... b4 {[%clk 0:02:04.4]} 25. axb4 {[%clk
0:00:27.1]} 25... axb4 {[%clk 0:02:06.3]} 26. Ne3 {[%clk 0:00:22.6]} 26... Qd3
{[%clk 0:01:58.2]} 27. Rxb4 {[%clk 0:00:19.8]} 27... Qxf1+ {[%clk 0:01:53.9]}
28. Nxf1 {[%clk 0:00:20.4]} 28... Nf2+ {[%clk 0:01:55.4]} 29. Kg1 {[%clk
0:00:21.8]} 29... Nxh3+ {[%clk 0:01:56.8]} 30. gxh3 {[%clk 0:00:23.7]} 30... Be4
{[%clk 0:01:54.9]} 31. Rc4 {[%clk 0:00:16.1]} 31... Nd5 {[%clk 0:01:54]} 32. Bd6
{[%clk 0:00:09.7]} 32... Rd8 {[%clk 0:01:54.3]} 33. Ba3 {[%clk 0:00:10.5]} 33...
Ra8 {[%clk 0:01:50.3]} 34. Bd6 {[%clk 0:00:09.8]} 34... c2 {[%clk 0:01:46.7]}
35. Kf2 {[%clk 0:00:07.5]} 35... Bxf5 {[%clk 0:01:40.8]} 36. Ng3 {[%clk
0:00:07.1]} 36... Bd3 {[%clk 0:01:40.8]} 37. Rc5 {[%clk 0:00:07.7]} 37... Ra1
{[%clk 0:01:30.1]} 38. Ne2 {[%clk 0:00:02.4]} 38... Bxe2 {[%clk 0:01:26.2]} 39.
Rxc2 {[%clk 0:00:02.9]} 39... Bd3 {[%clk 0:01:26.6]} 40. Rc5 {[%clk 0:00:03.8]}
40... Be4 {[%clk 0:01:27.3]} 0-1

[Event "*** Titled Tuesday Blitz"]
[Site "Chess.com"]
[Date "2019.11.05"]
[Round "10"]
[White "Rhinos1"]
[Black "Chempiblinka"]
[Result "0-1"]
[WhiteElo "2068"]
[BlackElo "2297"]
[TimeControl "180+2"]
[EndTime "15:19:30 PST"]
[Termination "Chempiblinka won by resignation"]

1. d4 {[%clk 0:03:01.9]} 1... Nf6 {[%clk 0:03:00.3]} 2. Nf3 {[%clk 0:03:02.9]}
2... d6 {[%clk 0:03:00.7]} 3. g3 {[%clk 0:03:04]} 3... g6 {[%clk 0:03:01.7]} 4.
Bg2 {[%clk 0:03:05.4]} 4... Bg7 {[%clk 0:03:03.1]} 5. O-O {[%clk 0:03:07]} 5...
O-O {[%clk 0:03:03.9]} 6. c4 {[%clk 0:03:08.5]} 6... c6 {[%clk 0:03:01.8]} 7.
Nc3 {[%clk 0:03:09.8]} 7... Qa5 {[%clk 0:03:00.6]} 8. h3 {[%clk 0:03:05.9]} 8...
Be6 {[%clk 0:02:57.2]} 9. Nd2 {[%clk 0:02:58.6]} 9... d5 {[%clk 0:02:56.3]} 10.
cxd5 {[%clk 0:02:01.9]} 10... cxd5 {[%clk 0:02:56.3]} 11. Nb3 {[%clk 0:01:52]}
11... Qd8 {[%clk 0:02:56.6]} 12. Bg5 {[%clk 0:01:53.3]} 12... Nbd7 {[%clk
0:02:46.8]} 13. Bxf6 {[%clk 0:01:45.7]} 13... Nxf6 {[%clk 0:02:46.3]} 14. Nc5
{[%clk 0:01:47.1]} 14... Bc8 {[%clk 0:02:46.4]} 15. Qb3 {[%clk 0:01:45.3]} 15...
b6 {[%clk 0:02:14.7]} 16. Nxd5 {[%clk 0:01:43.8]} 16... bxc5 {[%clk 0:02:13.3]}
17. Nxf6+ {[%clk 0:01:43]} 17... Bxf6 {[%clk 0:02:14.2]} 18. Bxa8 {[%clk
0:01:44]} 18... Be6 {[%clk 0:02:03.6]} 19. d5 {[%clk 0:01:33.6]} 19... Bxh3
{[%clk 0:02:03.7]} 20. Bc6 {[%clk 0:01:25.4]} 20... Bxf1 {[%clk 0:01:59.7]} 21.
Rxf1 {[%clk 0:01:27.3]} 21... Qd6 {[%clk 0:01:58.4]} 22. Qa3 {[%clk 0:01:21.9]}
22... Rb8 {[%clk 0:01:53.8]} 23. b3 {[%clk 0:01:21.1]} 23... Bd4 {[%clk
0:01:52.8]} 24. Kg2 {[%clk 0:01:20.4]} 24... e6 {[%clk 0:01:43]} 25. e4 {[%clk
0:01:13.9]} 25... Qc7 {[%clk 0:01:23.8]} 26. Qa4 {[%clk 0:01:02.4]} 26... Rb4
{[%clk 0:01:20.9]} 27. Qa6 {[%clk 0:01:01.9]} 27... Rb6 {[%clk 0:01:13.1]} 28.
Qd3 {[%clk 0:01:00.1]} 28... h5 {[%clk 0:00:59.7]} 29. Rh1 {[%clk 0:00:53.8]}
29... a5 {[%clk 0:00:53]} 30. Qf3 {[%clk 0:00:51.3]} 30... exd5 {[%clk
0:00:46.9]} 31. Bxd5 {[%clk 0:00:51]} 31... Rf6 {[%clk 0:00:47.4]} 32. Qd3
{[%clk 0:00:43.9]} 32... Rxf2+ {[%clk 0:00:46.5]} 0-1

[Event "*** Titled Tuesday Blitz"]
[Site "Chess.com"]
[Date "2019.11.05"]
[Round "10"]
[White "Gabrielian_Artur"]
[Black "bubacik"]
[Result "1-0"]
[WhiteElo "2828"]
[BlackElo "2674"]
[TimeControl "180+2"]
[EndTime "15:19:33 PST"]
[Termination "Gabrielian_Artur won by resignation"]

1. e4 {[%clk 0:03:01.9]} 1... e5 {[%clk 0:03:01.4]} 2. Nf3 {[%clk 0:03:02.3]}
2... Nc6 {[%clk 0:03:03.1]} 3. Bb5 {[%clk 0:03:02.9]} 3... a6 {[%clk 0:03:04.7]}
4. Bxc6 {[%clk 0:03:01.8]} 4... dxc6 {[%clk 0:03:06.6]} 5. Nc3 {[%clk
0:03:02.6]} 5... f6 {[%clk 0:02:59.5]} 6. d3 {[%clk 0:03:02.5]} 6... c5 {[%clk
0:02:53.2]} 7. O-O {[%clk 0:02:54.6]} 7... Bd6 {[%clk 0:02:54.4]} 8. Nh4 {[%clk
0:02:54.2]} 8... Ne7 {[%clk 0:02:54.9]} 9. f4 {[%clk 0:02:53.9]} 9... Be6 {[%clk
0:02:48.1]} 10. fxe5 {[%clk 0:02:51.2]} 10... Bxe5 {[%clk 0:02:47]} 11. Nf3
{[%clk 0:02:52.2]} 11... Qd6 {[%clk 0:02:07.8]} 12. Nxe5 {[%clk 0:02:46.9]}
12... fxe5 {[%clk 0:02:09.4]} 13. Qh5+ {[%clk 0:02:41.3]} 13... g6 {[%clk
0:02:03.2]} 14. Qh4 {[%clk 0:02:38.3]} 14... h6 {[%clk 0:01:56.4]} 15. Bg5
{[%clk 0:02:27.2]} 15... Kd7 {[%clk 0:01:11.1]} 16. Bf6 {[%clk 0:02:25.1]} 16...
Rh7 {[%clk 0:00:56]} 17. Qg3 {[%clk 0:02:25.8]} 17... Nc6 {[%clk 0:00:56.4]} 18.
Qxg6 {[%clk 0:02:21.1]} 18... Rf7 {[%clk 0:00:55.7]} 19. Bg7 {[%clk 0:01:35.7]}
19... Qd4+ {[%clk 0:00:09.4]} 20. Kh1 {[%clk 0:01:35.7]} 20... Rxf1+ {[%clk
0:00:11.3]} 21. Rxf1 {[%clk 0:01:35.6]} 21... Rg8 {[%clk 0:00:13.2]} 22. Qxh6
{[%clk 0:01:29.4]} 22... Ne7 {[%clk 0:00:07.8]} 23. Qg5 {[%clk 0:01:20.3]} 23...
b5 {[%clk 0:00:06.1]} 24. Nd1 {[%clk 0:01:18.2]} 24... Qa4 {[%clk 0:00:05.5]}
25. Ne3 {[%clk 0:01:13.6]} 25... Qxa2 {[%clk 0:00:06.4]} 26. Qxe5 {[%clk
0:01:14.6]} 26... Qa5 {[%clk 0:00:05.5]} 27. Bf6 {[%clk 0:01:08.1]} 27... Qd2
{[%clk 0:00:05.7]} 28. Qxc5 {[%clk 0:00:46.1]} 28... Nc6 {[%clk 0:00:05.2]} 29.
Rg1 {[%clk 0:00:41.3]} 29... Qf2 {[%clk 0:00:03.6]} 30. b4 {[%clk 0:00:37.8]}
30... Bh3 {[%clk 0:00:04.6]} 31. Qd5+ {[%clk 0:00:37.7]} 1-0

[Event "*** Titled Tuesday Blitz"]
[Site "Chess.com"]
[Date "2019.11.05"]
[Round "10"]
[White "AyelenChess"]
[Black "Galileo22"]
[Result "0-1"]
[WhiteElo "2068"]
[BlackElo "2413"]
[TimeControl "180+2"]
[EndTime "15:19:33 PST"]
[Termination "Galileo22 won by resignation"]

1. e4 {[%clk 0:03:01.9]} 1... c5 {[%clk 0:02:56.4]} 2. Nf3 {[%clk 0:02:57.1]}
2... Nc6 {[%clk 0:02:57.3]} 3. d4 {[%clk 0:02:58.4]} 3... cxd4 {[%clk
0:02:59.2]} 4. Nxd4 {[%clk 0:03:00.1]} 4... e5 {[%clk 0:03:00.7]} 5. Nb5 {[%clk
0:03:00.2]} 5... a6 {[%clk 0:03:02]} 6. Nd6+ {[%clk 0:03:00.6]} 6... Bxd6 {[%clk
0:03:03]} 7. Qxd6 {[%clk 0:03:00.3]} 7... Qf6 {[%clk 0:03:04.2]} 8. Qa3 {[%clk
0:03:01.4]} 8... Qg6 {[%clk 0:02:52.2]} 9. Be3 {[%clk 0:02:39]} 9... Nge7 {[%clk
0:02:08]} 10. Nc3 {[%clk 0:02:32.9]} 10... d6 {[%clk 0:01:17.1]} 11. O-O-O
{[%clk 0:02:31.6]} 11... Be6 {[%clk 0:01:16]} 12. Rxd6 {[%clk 0:02:23.2]} 12...
O-O {[%clk 0:01:12]} 13. Nd5 {[%clk 0:02:18.8]} 13... Rac8 {[%clk 0:00:49.4]}
14. h4 {[%clk 0:01:53]} 14... Nxd5 {[%clk 0:00:15.9]} 15. exd5 {[%clk
0:01:53.1]} 15... Nb4 {[%clk 0:00:16.8]} 16. Qb3 {[%clk 0:01:28.6]} 16... Nxd5
{[%clk 0:00:14.2]} 17. h5 {[%clk 0:01:24.6]} 17... Qe4 {[%clk 0:00:11.8]} 18. h6
{[%clk 0:01:18.3]} 18... Nxe3 {[%clk 0:00:12.5]} 19. fxe3 {[%clk 0:01:15.5]}
19... Bxb3 {[%clk 0:00:12.6]} 20. Bd3 {[%clk 0:01:16.1]} 20... Qxe3+ {[%clk
0:00:13]} 21. Kb1 {[%clk 0:01:15.2]} 21... g6 {[%clk 0:00:09.4]} 22. axb3 {[%clk
0:01:15]} 22... Rfd8 {[%clk 0:00:10.3]} 23. Rf6 {[%clk 0:01:12.1]} 23... Rc6
{[%clk 0:00:11]} 24. Rf3 {[%clk 0:01:12.1]} 24... Qg5 {[%clk 0:00:11.1]} 25.
Rhf1 {[%clk 0:01:12]} 25... Rd7 {[%clk 0:00:08.8]} 26. Bc4 {[%clk 0:01:09.8]}
26... Rxc4 {[%clk 0:00:09.6]} 27. bxc4 {[%clk 0:01:11.7]} 27... Qxh6 {[%clk
0:00:11.5]} 28. Rf6 {[%clk 0:01:12.1]} 28... Qe3 {[%clk 0:00:10.1]} 29. g4
{[%clk 0:01:09.4]} 29... e4 {[%clk 0:00:08]} 30. b3 {[%clk 0:01:08.7]} 30... Qd4
{[%clk 0:00:08]} 31. R6f4 {[%clk 0:01:08.7]} 31... Qe5 {[%clk 0:00:08.8]} 32.
R4f2 {[%clk 0:01:07.6]} 32... e3 {[%clk 0:00:09.8]} 33. Re2 {[%clk 0:01:09.1]}
33... Rd2 {[%clk 0:00:08]} 34. Ree1 {[%clk 0:01:06.5]} 34... e2 {[%clk
0:00:08.8]} 35. Rf3 {[%clk 0:01:06]} 35... Rd1+ {[%clk 0:00:09.3]} 0-1

[Event "*** Titled Tuesday Blitz"]
[Site "Chess.com"]
[Date "2019.11.05"]
[Round "10"]
[White "Perecke"]
[Black "yjjga"]
[Result "1-0"]
[WhiteElo "2139"]
[BlackElo "2007"]
[TimeControl "180+2"]
[EndTime "15:19:41 PST"]
[Termination "Perecke won by checkmate"]

1. e4 {[%clk 0:03:01.9]} 1... c5 {[%clk 0:03:00.6]} 2. Nf3 {[%clk 0:03:02.9]}
2... Nc6 {[%clk 0:03:02.2]} 3. d4 {[%clk 0:03:03.6]} 3... cxd4 {[%clk
0:03:04.1]} 4. Nxd4 {[%clk 0:03:04.2]} 4... Nf6 {[%clk 0:03:05.8]} 5. Nc3 {[%clk
0:03:04.4]} 5... e5 {[%clk 0:03:07.3]} 6. Ndb5 {[%clk 0:03:04.9]} 6... d6 {[%clk
0:03:08.8]} 7. Nd5 {[%clk 0:03:06.1]} 7... Nxd5 {[%clk 0:03:08.9]} 8. exd5
{[%clk 0:03:08]} 8... Nb8 {[%clk 0:03:10.5]} 9. a4 {[%clk 0:03:08.1]} 9... Be7
{[%clk 0:03:11.9]} 10. Be2 {[%clk 0:03:08.4]} 10... O-O {[%clk 0:03:12.9]} 11.
O-O {[%clk 0:03:09.9]} 11... Nd7 {[%clk 0:03:09.5]} 12. Be3 {[%clk 0:03:09.1]}
12... a6 {[%clk 0:03:05.5]} 13. Na3 {[%clk 0:03:10.4]} 13... f5 {[%clk
0:03:06.4]} 14. f4 {[%clk 0:03:09.7]} 14... Bf6 {[%clk 0:03:03.3]} 15. Nc4
{[%clk 0:03:02.2]} 15... exf4 {[%clk 0:02:50.5]} 16. Bxf4 {[%clk 0:02:59]} 16...
Ne5 {[%clk 0:02:52.4]} 17. Bxe5 {[%clk 0:02:57.1]} 17... dxe5 {[%clk 0:02:54.3]}
18. a5 {[%clk 0:02:47]} 18... e4 {[%clk 0:02:38.1]} 19. c3 {[%clk 0:02:44.9]}
19... Bd7 {[%clk 0:02:21.9]} 20. Nb6 {[%clk 0:02:39.5]} 20... Rb8 {[%clk
0:02:17.6]} 21. Bc4 {[%clk 0:02:38.2]} 21... Be5 {[%clk 0:02:08.3]} 22. d6+
{[%clk 0:02:32.5]} 22... Kh8 {[%clk 0:02:08.9]} 23. Qd5 {[%clk 0:02:33.2]} 23...
Bxh2+ {[%clk 0:01:22.9]} 24. Kxh2 {[%clk 0:02:29]} 24... Bc6 {[%clk 0:01:24.8]}
25. Qe5 {[%clk 0:02:17.1]} 25... Rf6 {[%clk 0:01:18.8]} 26. d7 {[%clk
0:02:07.5]} 26... e3 {[%clk 0:00:34.7]} 27. Rad1 {[%clk 0:01:58.2]} 27... Rg6
{[%clk 0:00:18.5]} 28. Qxb8 {[%clk 0:01:56.5]} 28... Rxg2+ {[%clk 0:00:13.1]}
29. Kh3 {[%clk 0:01:56.7]} 29... Rg3+ {[%clk 0:00:03.7]} 30. Kxg3 {[%clk
0:01:56.2]} 30... Qxb8+ {[%clk 0:00:04.1]} 31. Kh3 {[%clk 0:01:16.3]} 31... Bxd7
{[%clk 0:00:05.4]} 32. Rxd7 {[%clk 0:01:14.5]} 32... f4 {[%clk 0:00:05.5]} 33.
Rfd1 {[%clk 0:01:14.1]} 33... g5 {[%clk 0:00:02.5]} 34. Rd8+ {[%clk 0:01:15.4]}
34... Qxd8 {[%clk 0:00:04.1]} 35. Rxd8+ {[%clk 0:01:16.2]} 35... Kg7 {[%clk
0:00:06]} 36. Kg4 {[%clk 0:01:16.3]} 36... Kf6 {[%clk 0:00:06]} 37. Rf8+ {[%clk
0:01:16.9]} 37... Ke7 {[%clk 0:00:06.6]} 38. Rf7+ {[%clk 0:01:18.1]} 38... Kd6
{[%clk 0:00:07.2]} 39. Kxg5 {[%clk 0:01:18.9]} 39... f3 {[%clk 0:00:08]} 40.
Rxf3 {[%clk 0:01:18.9]} 40... Kc5 {[%clk 0:00:09.9]} 41. Rxe3 {[%clk 0:01:18.1]}
41... h6+ {[%clk 0:00:11.8]} 42. Kg6 {[%clk 0:01:18.1]} 42... Kc6 {[%clk
0:00:13.2]} 43. Re6+ {[%clk 0:01:18.2]} 43... Kc5 {[%clk 0:00:13.8]} 44. b4#
{[%clk 0:01:18.2]} 1-0